fUSD/lending_fUSD_20250124
["ID","MTS","AMOUNT","RATE_DAILY","PERIOD"]
[350206162,1737689434433,-500.0,0.00017926,2]
[350206163,1737689434442,-500.0,0.00017926,2]
[350206164,1737689434451,-500.0,0.00017926,2]
[350206165,1737689434461,-521.43951857,0.00017926,2]
[350206166,1737689434471,-500.0,0.00017926,2]
[350206167,1737689434480,-500.0,0.00017926,2]
[350206168,1737689434489,-500.0,0.00017926,2]
[350206169,1737689434499,-521.29558489,0.00017926,2]
[350206170,1737689434508,-523.09299766,0.00017926,2]
[350206171,1737689434518,-2199.0,0.00018,2]
[350206172,1737689434528,-360.20503804,0.00018038,2]
[350206173,1737689434537,-1813.454,0.0001807,2]
[350206174,1737689434546,-167.638,0.0001807,2]
[350206175,1737689434556,-500.0,0.00018079,2]
[350206176,1737689434565,-509.27591214,0.00018079,2]
[350206177,1737689434575,-514.42622527,0.00018079,2]
[350206178,1737689434584,-312.68338904,0.00018079,2]
[350206179,1737689434593,-523.96324881,0.00018079,2]
[350206180,1737689434603,-500.0,0.00018079,2]
[350206181,1737689434612,-500.0,0.00018079,2]
[350206182,1737689434621,-500.0,0.00018079,2]
[350206183,1737689434633,-500.0,0.00018079,2]
[350206184,1737689434643,-500.0,0.00018079,2]
[350206185,1737689434652,-802.74,0.00018082,2]
[350206186,1737689434661,-500.0,0.00018082,2]
[350206187,1737689434670,-646.54,0.00018082,2]
[350206188,1737689434680,-500.0,0.00018082,2]
[350206189,1737689434689,-500.0,0.00018082,2]
[350206190,1737689434699,-500.0,0.00018082,2]
[350206191,1737689434712,-790.11,0.00018082,2]
[350206192,1737689434721,-715.81,0.00018082,2]
[350206193,1737689434730,-500.0,0.00018082,2]
[350206194,1737689434740,-224.92,0.00018082,2]
[350206195,1737689434750,-1205.98,0.00018082,2]
[350206196,1737689434759,-500.0,0.00018082,2]
[350206197,1737689434768,-719.0,0.00018082,2]
[350206198,1737689434778,-666.5,0.00018082,2]
[350206199,1737689434787,-500.0,0.00018082,2]
[350206200,1737689434797,-1075.65,0.00018082,2]
[350206201,1737689434807,-500.0,0.00018082,2]
[350206202,1737689434817,-500.0,0.00018082,2]
[350206203,1737689434826,-353.29,0.00018082,2]
[350206204,1737689434835,-159.889,0.000181,2]
[350206205,1737689434845,-1311.22462221,0.000181,2]
[350206206,1737689434855,-744.32873618,0.000181,2]
[350206207,1737689434864,-295.69044442,0.00018173,2]
[350206208,1737689434875,-360.20503804,0.00018176,2]
[350206209,1737689434885,-251757.92630802,0.00018189,2]
[350206210,1737689434900,-4200.0,0.00018189,2]
[350206211,1737689434915,-2235.54614608,0.00018189,2]
[350206212,1737689434927,-355.79999989,0.00018189,2]
[350206213,1737689434938,-2185.53507333,0.00018189,2]
[350206214,1737689434949,-16295.46070581,0.00018189,2]
[350206215,1737689434959,-500.0,0.000182,2]
[350206216,1737689434968,-500.0,0.000182,2]
[350206217,1737689434978,-500.0,0.000182,2]
[350206218,1737689434987,-500.0,0.000182,2]
[350206219,1737689434996,-500.0,0.000182,2]
[350206220,1737689435006,-500.0,0.000182,2]
[350206221,1737689435015,-500.0,0.000182,2]
[350206222,1737689435025,-500.0,0.000182,2]
[350206223,1737689435034,-500.0,0.000182,2]
[350206224,1737689435043,-500.0,0.000182,2]
[350206225,1737689435052,-500.0,0.000182,2]
[350206226,1737689435062,-500.0,0.000182,2]
[350206227,1737689435071,-500.0,0.000182,2]
[350206228,1737689435080,-500.0,0.000182,2]
[350206229,1737689435090,-500.0,0.000182,2]
[350206230,1737689435099,-500.0,0.000182,2]
[350206231,1737689435108,-500.0,0.000182,2]
[350206232,1737689435117,-500.0,0.000182,2]
[350206233,1737689435128,-500.0,0.000182,2]
[350206234,1737689435137,-500.0,0.000182,2]
[350206235,1737689435146,-500.0,0.000182,2]
[350206236,1737689435156,-500.0,0.000182,2]
[350206237,1737689435165,-275.74,0.00018209,2]
[350206238,1737689435175,-165.36,0.00018229,2]
[350206239,1737689435185,-1311.22462217,0.00018244,2]
[350206240,1737689435194,-360.20503804,0.00018314,2]
[350206241,1737689435203,-500.0,0.00018353,2]
[350206242,1737689435212,-500.0,0.00018353,2]
[350206243,1737689435221,-500.0,0.00018353,2]
[350206244,1737689435230,-802.74,0.00018356,2]
[350206245,1737689435240,-500.0,0.00018356,2]
[350206246,1737689435249,-646.54,0.00018356,2]
[350206247,1737689435258,-500.0,0.00018356,2]
[350206248,1737689435267,-500.0,0.00018356,2]
[350206249,1737689435276,-500.0,0.00018356,2]
[350206250,1737689435286,-790.11,0.00018356,2]
[350206251,1737689435295,-715.81,0.00018356,2]
[350206252,1737689435304,-500.0,0.00018356,2]
[350206253,1737689435314,-1205.98,0.00018356,2]
[350206254,1737689435323,-500.0,0.00018356,2]
[350206255,1737689435332,-719.0,0.00018356,2]
[350206256,1737689435342,-666.5,0.00018356,2]
[350206257,1737689435351,-250.75,0.00018356,2]
[350206258,1737689435360,-1075.65,0.00018356,2]
[350206259,1737689435370,-500.0,0.00018356,2]
[350206260,1737689435383,-500.0,0.00018356,2]
[350206261,1737689435392,-151.49562239,0.00018372,2]
[350206262,1737689435401,-3418.1929,0.00018372,2]
[350206263,1737689435410,-152.0,0.00018381,3]
[350206264,1737689435419,-1311.22462217,0.00018389,2]
[350206265,1737689435429,-744.32873618,0.00018392,2]
[350206266,1737689435438,-360.20503804,0.00018452,2]
[350206267,1737689435447,-150.77,0.00018462,2]
[350206268,1737689435456,-609.279078,0.00018471,2]
[350206269,1737689435465,-500.0,0.00018471,2]
[350206270,1737689435475,-603.18,0.00018471,2]
[350206271,1737689435484,-500.0,0.00018471,2]
[350206272,1737689435493,-405.307645,0.00018471,2]
[350206273,1737689435503,-1135.6,0.00018471,2]
[350206274,1737689435512,-723.35,0.00018471,2]
[350206275,1737689435521,-159.341931,0.00018471,2]
[350206276,1737689435531,-158.435192,0.00018471,2]
[350206277,1737689435540,-500.0,0.00018471,2]
[350206278,1737689435549,-500.0,0.00018471,2]
[350206279,1737689435559,-1035.95,0.00018471,2]
[350206280,1737689435570,-1419.55,0.00018471,2]
[350206281,1737689435579,-1122.99,0.00018471,2]
[350206282,1737689435589,-500.0,0.00018471,2]
[350206283,1737689435598,-500.0,0.00018471,2]
[350206284,1737689435608,-500.0,0.00018471,2]
[350206285,1737689435617,-1157.14,0.00018471,2]
[350206286,1737689435628,-620.74,0.00018471,2]
[350206287,1737689435637,-500.0,0.00018471,2]
[350206288,1737689435646,-500.0,0.00018471,2]
[350206289,1737689435655,-500.0,0.00018471,2]
[350206290,1737689435665,-500.0,0.00018471,2]
[350206291,1737689435674,-737.89,0.00018471,2]
[350206292,1737689435684,-500.0,0.00018471,2]
[350206293,1737689435693,-647.14,0.00018471,2]
[350206294,1737689435703,-572.96,0.00018471,2]
[350206295,1737689435712,-500.0,0.00018471,2]
[350206296,1737689435722,-540.02000802,0.00018471,2]
[350206297,1737689435734,-1634.71,0.00018471,2]
[350206298,1737689435743,-1346.54,0.00018471,2]
[350206299,1737689435753,-500.0,0.00018471,2]
[350206300,1737689435762,-856.46,0.00018471,2]
[350206301,1737689435772,-500.0,0.00018471,2]
[350206302,1737689435782,-500.0,0.00018471,2]
[350206303,1737689435792,-500.0,0.00018471,2]
[350206304,1737689435803,-1088.73,0.00018471,2]
[350206305,1737689435812,-500.0,0.00018472,2]
[350206306,1737689435821,-500.0,0.00018472,2]
[350206307,1737689435830,-500.0,0.00018472,2]
[350206308,1737689435840,-500.0,0.00018472,2]
[350206309,1737689435850,-500.0,0.00018472,2]
[350206310,1737689435859,-500.0,0.00018472,2]
[350206311,1737689435868,-500.0,0.00018472,2]
[350206312,1737689435880,-500.0,0.00018472,2]
[350206313,1737689435890,-500.0,0.00018472,2]
[350206314,1737689435899,-500.0,0.00018472,2]
[350206315,1737689435908,-500.0,0.00018472,2]
[350206316,1737689435918,-500.0,0.00018472,2]
[350206317,1737689435927,-500.0,0.00018472,2]
[350206318,1737689435937,-500.0,0.00018472,2]
[350206319,1737689435946,-513.9174429,0.00018472,2]
[350206320,1737689435955,-500.0,0.00018472,2]
[350206321,1737689435964,-500.0,0.00018472,2]
[350206322,1737689435973,-500.0,0.00018472,2]
[350206323,1737689435982,-500.0,0.00018472,2]
[350206324,1737689435992,-500.0,0.00018472,2]
[350206325,1737689436001,-500.0,0.00018472,2]
[350206326,1737689436010,-500.0,0.00018472,2]
[350206327,1737689436019,-500.0,0.00018472,2]
[350206328,1737689436028,-517.21,0.00018472,2]
[350206329,1737689436037,-500.0,0.00018472,2]
[350206330,1737689436047,-500.0,0.00018472,2]
[350206331,1737689436056,-500.0,0.00018472,2]
[350206332,1737689436065,-500.0,0.00018472,2]
[350206333,1737689436074,-332.10392098,0.00018472,2]
[350206334,1737689436083,-500.0,0.00018472,2]
[350206335,1737689436092,-500.0,0.00018472,2]
[350206336,1737689436102,-500.0,0.00018472,2]
[350206337,1737689436111,-500.0,0.00018472,2]
[350206338,1737689436120,-613.23,0.00018472,2]
[350206339,1737689436130,-500.0,0.00018472,2]
[350206340,1737689436139,-500.0,0.00018472,2]
[350206341,1737689436148,-500.0,0.00018472,2]
[350206342,1737689436157,-500.0,0.00018472,2]
[350206343,1737689436167,-500.0,0.00018472,2]
[350206344,1737689436175,-500.0,0.00018472,2]
[350206345,1737689436184,-500.0,0.00018472,2]
[350206346,1737689436193,-500.0,0.00018472,2]
[350206347,1737689436203,-500.0,0.00018472,2]
[350206348,1737689436213,-500.0,0.00018472,2]
[350206349,1737689436222,-500.0,0.00018472,2]
[350206350,1737689436231,-500.0,0.00018472,2]
[350206351,1737689436242,-500.0,0.00018472,2]
[350206352,1737689436251,-500.0,0.00018472,2]
[350206353,1737689436260,-500.0,0.00018472,2]
[350206354,1737689436269,-500.0,0.00018472,2]
[350206355,1737689436278,-500.0,0.00018472,2]
[350206356,1737689436287,-500.0,0.00018472,2]
[350206357,1737689436298,-500.0,0.00018472,2]
[350206358,1737689436308,-500.0,0.00018472,2]
[350206359,1737689436318,-500.0,0.00018472,2]
[350206360,1737689436328,-500.0,0.00018472,2]
[350206361,1737689436338,-500.0,0.00018472,2]
[350206362,1737689436347,-500.0,0.00018472,2]
[350206363,1737689436357,-500.0,0.00018472,2]
[350206364,1737689436367,-500.0,0.00018472,2]
[350206365,1737689436379,-500.0,0.00018472,2]
[350206366,1737689436388,-500.0,0.00018472,2]
[350206367,1737689436397,-500.0,0.00018472,2]
[350206368,1737689436407,-500.0,0.00018472,2]
[350206369,1737689436417,-500.0,0.00018472,2]
[350206370,1737689436428,-500.0,0.00018472,2]
[350206371,1737689436439,-500.0,0.00018472,2]
[350206372,1737689436448,-500.0,0.00018472,2]
[350206373,1737689436458,-500.0,0.00018472,2]
[350206374,1737689436467,-500.0,0.00018472,2]
[350206375,1737689436476,-529.902642,0.00018472,2]
[350206376,1737689436485,-504.26038138,0.00018472,2]
[350206377,1737689436494,-500.0,0.00018472,2]
[350206378,1737689436503,-520.12956235,0.00018472,2]
[350206379,1737689436513,-500.0,0.00018472,2]
[350206380,1737689436522,-506.03,0.00018472,2]
[350206381,1737689436532,-500.0,0.00018472,2]
[350206382,1737689436541,-510.01934064,0.00018472,2]
[350206383,1737689436550,-500.0,0.00018472,2]
[350206384,1737689436560,-500.0,0.00018472,2]
[350206385,1737689436569,-517.8721237,0.00018472,2]
[350206386,1737689436578,-500.0,0.00018472,2]
[350206387,1737689436587,-500.0,0.00018472,2]
[350206388,1737689436598,-500.0,0.00018472,2]
[350206389,1737689436607,-500.0,0.00018472,2]
[350206390,1737689436617,-519.4312262,0.00018472,2]
[350206391,1737689436628,-500.0,0.00018472,2]
[350206392,1737689436637,-500.0,0.00018472,2]
[350206393,1737689436646,-506.709192,0.00018472,2]
[350206394,1737689436655,-500.0,0.00018472,2]
[350206395,1737689436664,-500.0,0.00018472,2]
[350206396,1737689436674,-500.0,0.00018472,2]
[350206397,1737689436683,-500.0,0.00018472,2]
[350206398,1737689436693,-500.0,0.00018472,2]
[350206399,1737689436702,-262.30410116,0.00018472,2]
[350206400,1737689436712,-500.0,0.00018472,2]
[350206401,1737689436722,-373.89761756,0.00018472,2]
[350206402,1737689436734,-500.0,0.00018472,2]
[350206403,1737689436744,-439.9655803,0.00018472,2]
[350206404,1737689436754,-500.0,0.00018472,2]
[350206405,1737689436765,-500.0,0.00018472,2]
[350206406,1737689436774,-500.0,0.00018472,2]
[350206407,1737689436783,-500.0,0.00018472,2]
[350206408,1737689436793,-500.0,0.00018472,2]
[350206409,1737689436804,-956.13,0.00018472,2]
[350206410,1737689436814,-500.0,0.00018472,2]
[350206411,1737689436823,-500.0,0.00018472,2]
[350206412,1737689436832,-500.0,0.00018472,2]
[350206413,1737689436842,-500.0,0.00018472,2]
[350206414,1737689436852,-500.0,0.00018472,2]
[350206415,1737689436862,-500.0,0.00018472,2]
[350206416,1737689436872,-577.4,0.00018472,2]
[350206417,1737689436883,-500.0,0.00018472,2]
[350206418,1737689436892,-562.22,0.00018472,2]
[350206419,1737689436902,-500.0,0.00018472,2]
[350206420,1737689436911,-500.0,0.00018472,2]
[350206421,1737689436920,-500.0,0.00018472,2]
[350206422,1737689436930,-500.0,0.00018472,2]
[350206423,1737689436939,-500.0,0.00018472,2]
[350206424,1737689436949,-500.0,0.00018472,2]
[350206425,1737689436958,-500.0,0.00018472,2]
[350206426,1737689436967,-500.0,0.00018472,2]
[350206427,1737689436976,-500.0,0.00018472,2]
[350206428,1737689436985,-500.0,0.00018472,2]
[350206429,1737689436994,-500.0,0.00018472,2]
[350206430,1737689437003,-500.0,0.00018472,2]
[350206431,1737689437012,-500.0,0.00018472,2]
[350206432,1737689437020,-500.0,0.00018472,2]
[350206433,1737689437030,-500.0,0.00018472,2]
[350206434,1737689437039,-500.0,0.00018472,2]
[350206435,1737689437048,-500.0,0.00018472,2]
[350206436,1737689437057,-500.0,0.00018472,2]
[350206437,1737689437066,-500.0,0.00018472,2]
[350206438,1737689437075,-500.0,0.00018472,2]
[350206439,1737689437085,-500.0,0.00018472,2]
[350206440,1737689437094,-500.0,0.00018472,2]
[350206441,1737689437103,-500.0,0.00018472,2]
[350206442,1737689437112,-500.0,0.00018472,2]
[350206443,1737689437121,-500.0,0.00018472,2]
[350206444,1737689437133,-500.0,0.00018472,2]
[350206445,1737689437142,-1257.65,0.00018472,2]
[350206446,1737689437151,-500.0,0.00018472,2]
[350206447,1737689437160,-500.0,0.00018472,2]
[350206448,1737689437169,-1930.23,0.00018472,2]
[350206449,1737689437178,-500.0,0.00018472,2]
[350206450,1737689437187,-500.0,0.00018472,2]
[350206451,1737689437196,-500.0,0.00018472,2]
[350206452,1737689437205,-500.0,0.00018472,2]
[350206453,1737689437214,-500.0,0.00018472,2]
[350206454,1737689437355,-160.17782855,0.00018472,2]
[350206455,1737689437366,-500.0,0.00018472,2]
[350206456,1737689437376,-500.0,0.00018472,2]
[350206457,1737689437386,-500.0,0.00018472,2]
[350206458,1737689437395,-500.0,0.00018472,2]
[350206459,1737689437404,-500.0,0.00018472,2]
[350206460,1737689437413,-503.4,0.00018472,2]
[350206461,1737689437423,-500.0,0.00018472,2]
[350206462,1737689437432,-500.0,0.00018472,2]
[350206463,1737689437441,-500.0,0.00018472,2]
[350206464,1737689437451,-500.0,0.00018472,2]
[350206465,1737689437460,-500.0,0.00018472,2]
[350206466,1737689437469,-500.0,0.00018472,2]
[350206467,1737689437478,-500.0,0.00018472,2]
[350206468,1737689437488,-500.0,0.00018472,2]
[350206469,1737689437497,-500.0,0.00018472,2]
[350206470,1737689437507,-500.0,0.00018472,2]
[350206471,1737689437516,-500.0,0.00018472,2]
[350206472,1737689437525,-500.0,0.00018472,2]
[350206473,1737689437534,-500.0,0.00018472,2]
[350206474,1737689437543,-500.0,0.00018472,2]
[350206475,1737689437552,-500.0,0.00018472,2]
[350206476,1737689437561,-1000.0,0.00018472,2]
[350206477,1737689437570,-500.0,0.00018472,2]
[350206478,1737689437580,-513.22,0.00018472,2]
[350206479,1737689437589,-500.0,0.00018472,2]
[350206481,1737689437598,-500.0,0.00018472,2]
[350206483,1737689437607,-500.0,0.00018472,2]
[350206485,1737689437616,-500.0,0.00018472,2]
[350206486,1737689437626,-500.0,0.00018472,2]
[350206487,1737689437635,-501.04,0.00018472,2]
[350206488,1737689437644,-500.0,0.00018472,2]
[350206490,1737689437653,-500.0,0.00018472,2]
[350206492,1737689437662,-500.0,0.00018472,2]
[350206493,1737689437671,-500.0,0.00018472,2]
[350206494,1737689437681,-500.0,0.00018472,2]
[350206495,1737689437690,-500.0,0.00018472,2]
[350206496,1737689437700,-500.0,0.00018472,2]
[350206498,1737689437715,-500.0,0.00018472,2]
[350206500,1737689437724,-500.0,0.00018472,2]
[350206502,1737689437733,-512.84061847,0.00018472,2]
[350206504,1737689437742,-518.21117186,0.00018472,2]
[350206506,1737689437751,-500.0,0.00018472,2]
[350206508,1737689437760,-500.0,0.00018472,2]
[350206509,1737689437769,-500.0,0.00018472,2]
[350206510,1737689437778,-500.0,0.00018472,2]
[350206511,1737689437787,-500.0,0.00018472,2]
[350206512,1737689437796,-500.0,0.00018472,2]
[350206513,1737689437806,-500.0,0.00018472,2]
[350206514,1737689437815,-500.0,0.00018472,2]
[350206515,1737689437824,-500.0,0.00018472,2]
[350206516,1737689437833,-500.0,0.00018472,2]
[350206517,1737689437843,-500.0,0.00018472,2]
[350206518,1737689437852,-500.0,0.00018472,2]
[350206519,1737689437861,-500.0,0.00018474,2]
[350206520,1737689437870,-500.0,0.00018474,2]
[350206521,1737689437881,-500.0,0.00018474,2]
[350206522,1737689437891,-624.26,0.00018474,2]
[350206523,1737689437900,-600.86,0.00018474,2]
[350206524,1737689437909,-500.0,0.00018474,2]
[350206525,1737689437919,-500.0,0.00018474,2]
[350206526,1737689437928,-500.0,0.00018474,2]
[350206527,1737689437937,-500.0,0.00018474,2]
[350206528,1737689437947,-500.0,0.00018474,2]
[350206529,1737689437956,-500.0,0.00018474,2]
[350206530,1737689437965,-187.75345172,0.000185,2]
[350206531,1737689437974,-187.75345154,0.000185,2]
[350206532,1737689437984,-187.75345154,0.000185,2]
[350206533,1737689437994,-187.75345154,0.000185,2]
[350206534,1737689438005,-187.75345154,0.000185,2]
[350206535,1737689438014,-187.75345154,0.000185,2]
[350206536,1737689438023,-187.75345154,0.000185,2]
[350206537,1737689438032,-187.75345154,0.000185,2]
[350206538,1737689438042,-187.75345154,0.000185,2]
[350206539,1737689438052,-187.75345154,0.000185,2]
[350206540,1737689438062,-187.75345154,0.000185,2]
[350206541,1737689438072,-187.75345154,0.000185,2]
[350206542,1737689438081,-187.75345154,0.000185,2]
[350206543,1737689438091,-1865.0,0.00018502,2]
[350206544,1737689438100,-782.0,0.00018502,2]
[350206545,1737689438110,-908.0,0.00018502,2]
[350206546,1737689438120,-1261.0,0.00018502,2]
[350206547,1737689438130,-2949.0,0.00018502,2]
[350206548,1737689438139,-150.0,0.00018502,2]
[350206549,1737689438149,-3986.0,0.00018502,2]
[350206550,1737689438158,-538.0,0.00018502,2]
[350206552,1737689438167,-150.0,0.00018502,2]
[350206554,1737689438176,-2019.0,0.00018502,2]
[350206556,1737689438186,-1218.234,0.00018502,2]
[350206557,1737689438195,-1311.22462217,0.00018533,2]
[350206559,1737689438204,-245.80929489,0.00018555,2]
[350206561,1737689438213,-246.11854786,0.00018556,2]
[350206563,1737689438223,-200.0,0.0001856,2]
[350206565,1737689438232,-15997.70643658,0.00018561,2]
[350206567,1737689438241,-246.11854786,0.00018569,2]
[350206569,1737689438251,-3055.90416546,0.00018579,2]
[350206571,1737689438260,-3055.90416546,0.0001858,2]
[350206573,1737689438269,-3107.16761277,0.0001858,2]
[350206575,1737689438279,-15997.70643658,0.00018583,2]
[350206577,1737689438288,-360.20503804,0.0001859,2]
[350206579,1737689438297,-3107.16761277,0.00018592,2]
[350206581,1737689438306,-245.80929489,0.00018599,2]
[350206583,1737689438315,-15997.70643658,0.00018612,2]
[350206585,1737689438325,-3055.90416546,0.00018612,2]
[350206587,1737689438334,-10665.13762437,0.00018616,2]
[350206589,1737689438343,-15997.70643658,0.00018617,2]
[350206591,1737689438352,-10665.13762437,0.0001862,2]
[350206594,1737689438362,-321.78,0.00018627,2]
[350206597,1737689438371,-500.0,0.00018627,2]
[350206599,1737689438382,-802.74,0.0001863,2]
[350206601,1737689438391,-500.0,0.0001863,2]
[350206603,1737689438400,-646.54,0.0001863,2]
[350206605,1737689438409,-500.0,0.0001863,2]
[350206607,1737689438418,-500.0,0.0001863,2]
[350206609,1737689438428,-500.0,0.0001863,2]
[350206611,1737689438437,-790.11,0.0001863,2]
[350206613,1737689438446,-715.81,0.0001863,2]
[350206615,1737689438456,-500.0,0.0001863,2]
[350206617,1737689438465,-1205.98,0.0001863,2]
[350206619,1737689438474,-500.0,0.0001863,2]
[350206621,1737689438484,-719.0,0.0001863,2]
[350206623,1737689438493,-666.5,0.0001863,2]
[350206625,1737689438502,-1075.65,0.0001863,2]
[350206627,1737689438511,-500.0,0.0001863,2]
[350206629,1737689438521,-423.61412716,0.0001863,2]
[350206631,1737689438530,-15997.70643658,0.00018639,2]
[350206633,1737689438539,-3055.90416546,0.00018652,2]
[350206635,1737689438549,-3055.90416546,0.00018656,2]
[350206637,1737689438558,-10665.13762437,0.00018661,2]
[350206639,1737689438567,-10665.13762437,0.00018663,2]
[350206641,1737689438576,-246.11854786,0.00018663,2]
[350206643,1737689438585,-10665.13762437,0.00018663,2]
[350206645,1737689438594,-3107.16761277,0.00018675,2]
[350206647,1737689438603,-1311.22462217,0.00018678,2]
[350206649,1737689438612,-246.11854786,0.00018681,2]
[350206651,1737689438621,-3107.16761277,0.00018683,2]
[350206653,1737689438631,-744.32873618,0.00018683,2]
[350206655,1737689438640,-245.80929489,0.00018685,2]
[350206657,1737689438649,-245.80929489,0.00018686,2]
[350206659,1737689438658,-3107.16761277,0.00018695,2]
[350206661,1737689438667,-246.11854786,0.00018697,2]
[350206663,1737689438676,-245.80929489,0.00018699,2]
[350206665,1737689438685,-360.20503804,0.00018728,2]
[350206667,1737689438695,-609.279078,0.00018745,2]
[350206668,1737689438705,-500.0,0.00018745,2]
[350206669,1737689438713,-603.18,0.00018745,2]
[350206670,1737689438725,-626.1,0.00018745,2]
[350206671,1737689438736,-405.307645,0.00018745,2]
[350206672,1737689438745,-1135.6,0.00018745,2]
[350206673,1737689438755,-723.35,0.00018745,2]
[350206674,1737689438764,-500.0,0.00018745,2]
[350206675,1737689438774,-500.0,0.00018745,2]
[350206676,1737689438783,-1035.95,0.00018745,2]
[350206677,1737689438793,-1419.55,0.00018745,2]
[350206678,1737689438804,-1122.99,0.00018745,2]
[350206679,1737689438813,-500.0,0.00018745,2]
[350206680,1737689438823,-500.0,0.00018745,2]
[350206681,1737689438831,-500.0,0.00018745,2]
[350206682,1737689438841,-1157.14,0.00018745,2]
[350206683,1737689438850,-620.74,0.00018745,2]
[350206684,1737689438859,-500.0,0.00018745,2]
[350206685,1737689438868,-500.0,0.00018745,2]
[350206686,1737689438879,-500.0,0.00018745,2]
[350206687,1737689438889,-500.0,0.00018745,2]
[350206688,1737689438898,-737.89,0.00018745,2]
[350206689,1737689438906,-500.0,0.00018745,2]
[350206690,1737689438916,-647.14,0.00018745,2]
[350206691,1737689438925,-572.96,0.00018745,2]
[350206692,1737689438935,-500.0,0.00018745,2]
[350206693,1737689438944,-1634.71,0.00018745,2]
[350206694,1737689438954,-1346.54,0.00018745,2]
[350206695,1737689438964,-500.0,0.00018745,2]
[350206696,1737689438972,-856.46,0.00018745,2]
[350206697,1737689438982,-500.0,0.00018745,2]
[350206698,1737689438992,-546.68,0.00018745,2]
[350206699,1737689439001,-500.0,0.00018745,2]
[350206700,1737689439011,-1088.73,0.00018745,2]
[350206701,1737689439019,-500.0,0.00018746,2]
[350206702,1737689439029,-637.6,0.00018746,2]
[350206703,1737689439038,-500.0,0.00018746,2]
[350206704,1737689439047,-500.0,0.00018746,2]
[350206705,1737689439056,-500.0,0.00018746,2]
[350206706,1737689439065,-500.0,0.00018746,2]
[350206707,1737689439074,-419.24,0.00018746,2]
[350206708,1737689439083,-603.35,0.00018746,2]
[350206709,1737689439093,-610.93,0.00018746,2]
[350206710,1737689439102,-500.0,0.00018746,2]
[350206711,1737689439112,-500.0,0.00018746,2]
[350206712,1737689439122,-366.47,0.00018746,2]
[350206713,1737689439133,-500.0,0.00018746,2]
[350206714,1737689439142,-500.0,0.00018746,2]
[350206715,1737689439151,-500.0,0.00018746,2]
[350206716,1737689439160,-500.0,0.00018746,2]
[350206717,1737689439175,-500.0,0.00018746,2]
[350206718,1737689439185,-500.0,0.00018746,2]
[350206719,1737689439194,-500.0,0.00018746,2]
[350206720,1737689439203,-512.87,0.00018746,2]
[350206721,1737689439211,-500.0,0.00018746,2]
[350206722,1737689439220,-500.0,0.00018746,2]
[350206723,1737689439230,-500.0,0.00018746,2]
[350206724,1737689439239,-500.0,0.00018746,2]
[350206725,1737689439249,-500.0,0.00018746,2]
[350206726,1737689439258,-218.94,0.00018746,2]
[350206727,1737689439268,-500.0,0.00018746,2]
[350206728,1737689439278,-500.0,0.00018746,2]
[350206729,1737689439288,-500.0,0.00018746,2]
[350206730,1737689439297,-299.58,0.00018746,2]
[350206731,1737689439306,-500.0,0.00018746,2]